fUST/lending_fUST_20260129
["ID","MTS","AMOUNT","RATE_DAILY","PERIOD"]
[403968357,1769699443987,-151.21,0.000186,2]
[403968358,1769699443997,-5000.0,0.00018768,2]
[403968359,1769699444007,-151.21,0.00019,2]
[403968360,1769699444020,-1000.0,0.00019036,2]
[403968361,1769699444030,-791.0,0.00019036,2]
[403968362,1769699444040,-1104.72,0.000193,2]
[403968363,1769699444051,-163.15,0.000193,2]
[403968364,1769699444061,-2363.24,0.000193,2]
[403968365,1769699444071,-168.2,0.000193,2]
[403968366,1769699444080,-630.0,0.00019363,2]
[403968367,1769699444090,-2150.0,0.00019363,2]
[403968368,1769699444100,-418.0,0.00019363,2]
[403968369,1769699444110,-418.0,0.00019363,2]
[403968370,1769699444120,-716.0,0.00019363,2]
[403968372,1769699444130,-179.0,0.00019363,2]
[403968374,1769699444140,-160.0,0.00019397,3]
[403968375,1769699444150,-151.21,0.000195,2]
[403968376,1769699444160,-150.0,0.00019531,2]
[403968378,1769699444170,-150.0,0.00019531,2]
[403968380,1769699444180,-151.21,0.000199,2]
[403968382,1769699444190,-150.0,0.0002,10]
[403968384,1769699444200,-266.66,0.0002,30]
[403968387,1769699444211,-12104.42,0.00020158,30]
[403968389,1769699444221,-151.0,0.000203,3]
[403968390,1769699444230,-151.21,0.000203,2]
[403968391,1769699444239,-5000.0,0.00020332,2]
[403968392,1769699444251,-151.0,0.000204,3]
[403968393,1769699444270,-556.07559813,0.00020493,2]
[403968395,1769699444279,-151.21,0.000207,2]
[403968396,1769699444289,-1000.0,0.0002094,2]
[403968397,1769699444300,-1000.0,0.0002094,2]
[403968398,1769699444310,-3000.0,0.00021,2]
[403968399,1769699444320,-3000.0,0.0002101,2]
[403968400,1769699444330,-3000.0,0.0002102,2]
[403968401,1769699444344,-3000.0,0.0002103,2]
[403968402,1769699444354,-3000.0,0.0002104,2]
[403968403,1769699444364,-3000.0,0.0002105,2]
[403968404,1769699444374,-3000.0,0.0002106,2]
[403968405,1769699444384,-3000.0,0.0002107,2]
[403968406,1769699444394,-3000.0,0.0002108,2]
[403968408,1769699444403,-3000.0,0.0002109,2]
[403968409,1769699444412,-3000.0,0.000211,2]
[403968410,1769699444423,-151.21,0.000211,2]
[403968412,1769699444433,-3000.0,0.0002111,2]
[403968413,1769699444444,-3000.0,0.0002112,2]
[403968414,1769699444453,-3000.0,0.0002113,2]
[403968416,1769699444463,-3000.0,0.0002114,2]
[403968417,1769699444473,-3000.0,0.0002115,2]
[403968418,1769699444482,-3000.0,0.0002116,2]
[403968420,1769699444491,-3000.0,0.0002117,2]
[403968421,1769699444501,-3000.0,0.0002118,2]
[403968423,1769699444516,-3000.0,0.0002119,2]
[403968425,1769699444525,-3000.0,0.000212,2]
[403968427,1769699444536,-1104.72,0.000212,2]
[403968429,1769699444546,-3000.0,0.0002121,2]
[403968432,1769699444556,-3000.0,0.0002122,2]
[403968433,1769699444567,-3000.0,0.0002123,2]
[403968435,1769699444576,-2304.77605847,0.00021237,2]
[403968437,1769699444586,-3000.0,0.0002124,2]
[403968439,1769699444595,-3000.0,0.0002125,2]
[403968441,1769699444605,-3000.0,0.0002126,2]
[403968443,1769699444614,-3000.0,0.0002127,2]
[403968445,1769699444624,-4326.97574142,0.00021278,2]
[403968448,1769699444633,-3000.0,0.0002128,2]
[403968450,1769699444643,-3000.0,0.0002129,2]
[403968452,1769699444653,-3000.0,0.000213,2]
[403968454,1769699444662,-3000.0,0.0002131,2]
[403968456,1769699444672,-3000.0,0.0002132,2]
[403968458,1769699444682,-3000.0,0.0002133,2]
[403968460,1769699444691,-3000.0,0.0002134,2]
[403968462,1769699444700,-3000.0,0.0002135,2]
[403968464,1769699444713,-3000.0,0.0002136,2]
[403968465,1769699444723,-3000.0,0.0002137,2]
[403968467,1769699444733,-3000.0,0.0002138,2]
[403968470,1769699444744,-3000.0,0.0002139,2]
[403968472,1769699444753,-3000.0,0.000214,2]
[403968473,1769699444766,-3000.0,0.0002141,2]
[403968475,1769699444775,-3000.0,0.0002142,2]
[403968477,1769699444785,-4294.473227,0.0002143,2]
[403968479,1769699444794,-151.21,0.000215,2]
[403968481,1769699444804,-163.0,0.00021589,5]
[403968483,1769699444814,-16656.86,0.000216,3]
[403968485,1769699444823,-151.21,0.000219,2]
[403968487,1769699444833,-2363.24,0.000219,2]
[403968489,1769699444843,-1507.0407865,0.00021918,7]
[403968491,1769699444852,-572.012534,0.00021918,2]
[403968493,1769699444862,-16139.23,0.00021937,30]
[403968495,1769699444873,-179.03,0.00022,2]
[403968497,1769699444883,-494.92,0.00022,7]
[403968499,1769699444893,-2000.0,0.00022041,7]
[403968501,1769699444902,-151.0,0.000222,8]
[403968503,1769699444911,-151.21,0.000223,2]
[403968505,1769699444921,-630.0,0.00022363,2]
[403968507,1769699444931,-418.0,0.00022363,2]
[403968509,1769699444941,-418.0,0.00022363,2]
[403968511,1769699444950,-716.0,0.00022363,2]
[403968513,1769699444959,-179.0,0.00022363,2]
[403968515,1769699444968,-151.0,0.000224,6]
[403968517,1769699444977,-608.75644427,0.00022493,2]
[403968519,1769699444986,-151.21,0.000227,2]
[403968521,1769699444996,-80567.6607128,0.00022955,2]
[403968523,1769699445005,-1041.66666667,0.00023,3]
[403968525,1769699445016,-160.0,0.00023,3]
[403968527,1769699445025,-1000.0,0.00023034,10]
[403968529,1769699445034,-1000.0,0.00023034,10]
[403968531,1769699445043,-579.0,0.00023034,10]
[403968533,1769699445053,-151.21,0.000232,2]
[403968535,1769699445063,-150.0,0.000235,2]
[403968537,1769699445073,-459.88918908,0.0002352,9]
[403968539,1769699445083,-500.0,0.0002352,9]
[403968541,1769699445092,-678.749689,0.0002352,2]
[403968543,1769699445101,-151.21,0.000236,2]
[403968545,1769699445110,-400.0,0.00023664,3]
[403968547,1769699445119,-710.0,0.00023664,3]
[403968549,1769699445128,-20174.04,0.00023715,30]
[403968551,1769699445137,-165.0,0.00023781,11]
[403968553,1769699445147,-4326.97574142,0.00023962,2]
[403968555,1769699445156,-151.0,0.00024,8]
[403968557,1769699445165,-151.21,0.00024,2]
[403968559,1769699445174,-6317.3246317,0.00024,7]
[403968561,1769699445184,-1041.66666667,0.00024,7]
[403968563,1769699445193,-160.0,0.00024,7]
[403968565,1769699445203,-151.21,0.000244,2]
[403968567,1769699445212,-661.43729041,0.00024493,2]
[403968569,1769699445222,-151.0,0.000245,9]
[403968571,1769699445231,-163.15,0.000245,7]
[403968573,1769699445241,-2363.24,0.000245,2]
[403968575,1769699445253,-494.92,0.000245,7]
[403968577,1769699445265,-710.0,0.00024532,3]
[403968579,1769699445274,-1104.72,0.000246,14]
[403968581,1769699445283,-500.0,0.00024658,2]
[403968583,1769699445294,-610.02395534,0.00024795,2]
[403968585,1769699445303,-151.21,0.000248,2]
[403968587,1769699445313,-2304.77605847,0.000248,2]
[403968589,1769699445323,-167.0,0.00024852,3]
[403968591,1769699445333,-200.0,0.00024899,2]
[403968593,1769699445342,-209.07,0.000249,2]
[403968595,1769699445351,-387539.906496,0.000249,2]
[403968597,1769699445361,-1065.69584,0.0002498,5]
[403968599,1769699445370,-1000.0,0.00025,5]
[403968601,1769699445380,-1041.66666667,0.00025,30]
[403968603,1769699445389,-423.67,0.000251,7]
[403968605,1769699445399,-151.21,0.000252,2]
[403968607,1769699445409,-350.20523241,0.00025205,2]
[403968609,1769699445418,-1000.0,0.00025337,10]
[403968611,1769699445428,-1000.0,0.00025337,10]
[403968613,1769699445437,-1000.0,0.00025337,10]
[403968615,1769699445447,-572.012534,0.00025342,2]
[403968617,1769699445456,-710.0,0.00025348,3]
[403968619,1769699445466,-630.0,0.00025363,2]
[403968621,1769699445475,-418.0,0.00025363,2]
[403968623,1769699445485,-418.0,0.00025363,2]
[403968625,1769699445495,-716.0,0.00025363,2]
[403968627,1769699445504,-179.0,0.00025363,2]
[403968629,1769699445516,-24208.84,0.00025494,30]
[403968631,1769699445525,-150.0,0.00025531,2]
[403968633,1769699445534,-151.21,0.000256,2]
[403968635,1769699445543,-2000.0,0.00025633,7]
[403968637,1769699445552,-151.0,0.000258,18]
[403968639,1769699445561,-204.26,0.00025851,2]
[403968641,1769699445571,-178.0,0.00025973,18]
[403968643,1769699445580,-710.0,0.00025988,3]
[403968645,1769699445589,-151.21,0.00026,2]
[403968647,1769699445598,-151.21,0.000264,2]
[403968649,1769699445607,-714.11813655,0.00026493,2]
[403968651,1769699445616,-178.92208645,0.00026542,5]
[403968653,1769699445625,-179.03,0.000266,2]
[403968655,1769699445634,-151.0,0.000266,20]
[403968657,1769699445644,-494.92,0.000266,7]
[403968659,1769699445654,-4326.97574142,0.00026645,2]
[403968661,1769699445664,-151.21,0.000268,2]
[403968663,1769699445674,-710.0,0.0002682,3]
[403968665,1769699445684,-1085.18081215,0.00026887,2]
[403968677,1769699445694,-2363.24,0.000269,2]
[403968680,1769699445822,-1041.66666667,0.00027,30]
[403968682,1769699445832,-161.0,0.0002714,3]
[403968684,1769699445842,-710.0,0.0002714,3]
[403968686,1769699445852,-28243.65,0.00027272,30]
[403968688,1769699445862,-151.21,0.000273,2]
[403968690,1769699445872,-150.0,0.00027397,5]
[403968692,1769699445882,-150.0,0.00027397,5]
[403968694,1769699445892,-710.0,0.0002746,3]
[403968696,1769699445902,-151.0,0.000277,12]
[403968698,1769699445912,-151.21,0.000277,2]
[403968700,1769699445921,-710.0,0.00027827,3]
[403968702,1769699445931,-402.0,0.00027827,3]
[403968704,1769699445941,-1000.0,0.00027871,30]
[403968706,1769699445951,-1000.0,0.00027871,30]
[403968708,1769699445961,-1000.0,0.00027871,30]
[403968709,1769699445970,-715.0,0.00027871,30]
[403968711,1769699445980,-250.0,0.00027945,5]
[403968713,1769699445991,-250.0,0.00027945,5]
[403968715,1769699446000,-180.01440115,0.00027982,2]
[403968717,1769699446013,-200.0,0.00028,2]
[403968719,1769699446029,-200.0,0.00028,2]
[403968721,1769699446039,-200.0,0.00028,2]
[403968724,1769699446048,-200.0,0.00028,2]
[403968727,1769699446058,-200.0,0.00028,2]
[403968730,1769699446068,-200.0,0.00028,2]
[403968733,1769699446077,-200.0,0.00028,2]
[403968736,1769699446086,-200.0,0.00028,2]
[403968739,1769699446096,-200.0,0.00028,2]
[403968742,1769699446105,-200.0,0.00028,2]
[403968745,1769699446114,-212.73480089,0.00028,2]
[403968748,1769699446124,-500.0,0.00028055,7]
[403968751,1769699446133,-151.21,0.000281,2]
[403968752,1769699446142,-710.0,0.00028147,3]
[403968754,1769699446152,-176.0,0.00028164,28]
[403968756,1769699446161,-200.65392429,0.00028218,10]
[403968758,1769699446171,-630.0,0.00028363,2]
[403968760,1769699446181,-418.0,0.00028363,2]
[403968764,1769699446191,-418.0,0.00028363,2]
[403968765,1769699446201,-716.0,0.00028363,2]
[403968767,1769699446210,-179.0,0.00028363,2]
[403968769,1769699446220,-766.79898269,0.00028493,2]
[403968771,1769699446229,-350.0,0.00028493,5]
[403968774,1769699446238,-350.0,0.00028493,5]
[403968776,1769699446248,-151.21,0.000285,2]
[403968778,1769699446259,-1104.72,0.000286,14]
[403968780,1769699446272,-151.0,0.000287,14]
[403968782,1769699446282,-494.92,0.000287,7]
[403968784,1769699446292,-572.012534,0.00028767,60]
[403968786,1769699446301,-161.0,0.00028859,3]
[403968788,1769699446312,-500.0,0.00028876,7]
[403968790,1769699446322,-151.21,0.000289,2]
[403968792,1769699446332,-450.0,0.00029041,5]
[403968793,1769699446342,-437.18535091,0.00029041,5]
[403968795,1769699446353,-32278.46,0.00029051,30]
[403968797,1769699446364,-161.0,0.00029107,3]
[403968799,1769699446374,-400.0,0.00029191,3]
[403968801,1769699446385,-710.0,0.00029213,3]
[403968803,1769699446395,-2000.0,0.00029224,7]
[403968805,1769699446406,-151.21,0.000293,2]
[403968807,1769699446416,-710.0,0.00029311,3]
[403968809,1769699446425,-4326.97574142,0.00029328,2]
[403968811,1769699446435,-156.43880212,0.00029441,7]
[403968813,1769699446444,-710.0,0.00029478,3]
[403968815,1769699446454,-151.0,0.000295,20]
[403968817,1769699446463,-2363.24,0.000295,2]
[403968819,1769699446473,-710.0,0.00029512,3]
[403968821,1769699446482,-710.0,0.00029555,3]
[403968823,1769699446491,-393.0,0.00029555,3]
[403968825,1769699446501,-710.0,0.00029571,3]
[403968827,1769699446515,-550.0,0.00029589,5]
[403968829,1769699446525,-151.21,0.000297,2]
[403968831,1769699446535,-513.24782513,0.00029713,7]
[403968833,1769699446546,-710.0,0.00029798,3]
[403968835,1769699446556,-163.15,0.000298,7]
[403968837,1769699446566,-400.0,0.00029831,3]
[403968839,1769699446576,-176.93253329,0.00029864,5]
[403968841,1769699446586,-211.45216166,0.00029864,5]
[403968843,1769699446596,-197.44,0.0003,30]
[403968845,1769699446605,-156.71557187,0.0003,5]
[403968847,1769699446615,-710.0,0.00030043,3]
[403968849,1769699446624,-1000.0,0.00030079,14]
[403968851,1769699446633,-1000.0,0.00030079,14]
[403968853,1769699446643,-1000.0,0.00030079,14]
[403968855,1769699446652,-1000.0,0.00030079,14]
[403968858,1769699446662,-1000.0,0.00030079,14]
[403968860,1769699446671,-1000.0,0.00030079,14]
[403968863,1769699446681,-1000.0,0.00030079,14]
[403968866,1769699446690,-1000.0,0.00030079,14]
[403968868,1769699446699,-1000.0,0.00030079,14]
[403968871,1769699446710,-1000.0,0.00030079,14]
[403968874,1769699446719,-1000.0,0.00030079,14]
[403968877,1769699446729,-1000.0,0.00030079,14]
[403968880,1769699446738,-1000.0,0.00030079,14]
[403968882,1769699446747,-1000.0,0.00030079,14]
[403968885,1769699446756,-1000.0,0.00030079,14]
[403968888,1769699446768,-1000.0,0.00030079,14]
[403968890,1769699446778,-1000.0,0.00030079,14]
[403968892,1769699446787,-667.60649056,0.00030079,14]
[403968894,1769699446796,-1000.0,0.00030079,14]
[403968896,1769699446805,-178.59765832,0.00030079,14]
[403968897,1769699446815,-151.0,0.00030079,14]
[403968899,1769699446824,-151.21,0.000301,2]
[403968901,1769699446833,-650.0,0.00030137,5]
[403968903,1769699446842,-156.2004881,0.00030137,120]
[403968905,1769699446852,-400.0,0.00030152,3]
[403968907,1769699446860,-710.0,0.00030152,3]
[403968909,1769699446870,-189.0,0.00030356,39]
[403968911,1769699446879,-710.0,0.00030471,3]
[403968913,1769699446889,-151.0,0.00030472,14]
[403968915,1769699446897,-710.0,0.00030493,3]
[403968917,1769699446906,-819.47982883,0.00030493,2]
[403968919,1769699446915,-710.0,0.00030558,3]
[403968921,1769699446924,-38000.0,0.00030574,10]
[403968923,1769699446934,-38000.0,0.00030582,10]
[403968925,1769699446942,-38000.0,0.00030591,10]
[403968927,1769699446951,-38000.0,0.000306,10]
[403968929,1769699446960,-38000.0,0.00030603,10]
[403968931,1769699446969,-1041.66666667,0.0003061,10]
[403968933,1769699446979,-1000.0,0.00030658,30]
[403968935,1769699446988,-1000.0,0.00030658,30]
[403968937,1769699446997,-1000.0,0.00030658,30]
[403968939,1769699447007,-750.0,0.00030685,5]
[403968941,1769699447020,-211.45216165,0.00030788,10]
[403968943,1769699447029,-151.0,0.000308,12]
[403968945,1769699447038,-494.92,0.000308,7]
[403968947,1769699447048,-36313.27,0.0003083,30]
[403968949,1769699447058,-151.0,0.00030865,14]
[403968951,1769699447068,-1070.71313743,0.00031,120]
[403968953,1769699447078,-1025.35768828,0.00031,120]
[403968955,1769699447088,-1038.39099904,0.00031,120]
[403968957,1769699447097,-1042.16614625,0.00031,120]
[403968959,1769699447107,-1033.58719126,0.00031,120]
[403968961,1769699447117,-1372.06086925,0.00031,120]
[403968963,1769699447126,-198.69232062,0.00031,120]
[403968965,1769699447136,-381.0951957,0.00031,120]
[403968967,1769699447145,-1499.8,0.00031,120]
[403968969,1769699447154,-172.33155781,0.00031,120]
[403968971,1769699447163,-176.13181646,0.00031,120]
[403968973,1769699447172,-2295.25383158,0.00031,120]
[403968975,1769699447181,-177.91583122,0.00031,120]
[403968977,1769699447190,-1041.66666667,0.00031,120]
[403968979,1769699447199,-179.10743706,0.00031,120]
[403968981,1769699447209,-1041.66666667,0.00031,3]
[403968983,1769699447218,-160.0,0.00031,3]
[403968985,1769699447227,-463.95908,0.000311,120]
[403968987,1769699447237,-850.0,0.00031233,5]
[403968989,1769699447247,-151.0,0.00031258,14]
[403968991,1769699447259,-14676.71379204,0.0003128,2]
[403968993,1769699447273,-151.0,0.000313,18]
[403968995,1769699447283,-630.0,0.00031363,2]
[403968997,1769699447293,-418.0,0.00031363,2]
[403968999,1769699447302,-716.0,0.00031363,2]
[403969001,1769699447312,-179.0,0.00031363,2]
[403969003,1769699447323,-635.65,0.000315,30]
[403969005,1769699447334,-150.0,0.00031531,2]
[403969007,1769699447343,-1000.0,0.00031651,14]
[403969009,1769699447353,-151.0,0.00031651,14]
[403969011,1769699447362,-179.03,0.000317,2]
[403969012,1769699447371,-2363.24,0.000317,2]
[403969014,1769699447381,-1024.0,0.000317,7]
[403969016,1769699447391,-16656.86,0.000317,7]
[403969018,1769699447400,-950.0,0.00031781,5]
[403969020,1769699447410,-1070.71313743,0.000319,120]
[403969022,1769699447420,-1025.35768828,0.000319,120]
[403969024,1769699447429,-1038.39099904,0.000319,120]
[403969026,1769699447440,-1042.16614625,0.000319,120]
[403969028,1769699447450,-1033.58719126,0.000319,120]
[403969030,1769699447459,-1372.06086925,0.000319,120]
[403969032,1769699447469,-381.0951957,0.000319,120]
[403969034,1769699447479,-1499.8,0.000319,120]
[403969036,1769699447489,-172.33155781,0.000319,120]
[403969038,1769699447498,-176.13181646,0.000319,120]
[403969040,1769699447507,-2295.25383158,0.000319,120]
[403969042,1769699447522,-177.91583122,0.000319,120]
[403969044,1769699447532,-1041.66666667,0.000319,10]
[403969046,1769699447541,-179.10743706,0.000319,120]
[403969048,1769699447551,-1017.03,0.00032,30]
[403969050,1769699447560,-4326.97574142,0.00032012,2]
[403969052,1769699447570,-161.4,0.00032038,15]
[403969054,1769699447579,-2348.49,0.00032038,15]
[403969056,1769699447589,-151.0,0.00032044,14]
[403969058,1769699447599,-1017.03,0.0003206,30]
[403969060,1769699447608,-161.4,0.00032138,15]
[403969062,1769699447617,-2348.49,0.00032138,15]
[403969064,1769699447627,-161.41929704,0.00032238,15]
[403969066,1769699447636,-2348.49,0.00032238,15]
[403969068,1769699447645,-500.0,0.00032328,7]
[403969070,1769699447655,-430.57024656,0.00032328,7]
[403969072,1769699447664,-1050.0,0.00032329,5]
[403969074,1769699447674,-2348.49,0.00032338,15]
[403969076,1769699447683,-1104.72,0.000324,14]
[403969078,1769699447693,-151.0,0.00032437,14]
[403969080,1769699447703,-2348.49,0.00032438,15]
[403969082,1769699447713,-872.16067497,0.00032493,2]
[403969084,1769699447723,-494.92,0.000325,7]
[403969086,1769699447733,-2348.49,0.00032538,15]
[403969088,1769699447742,-2319.29,0.00032602,120]
[403969090,1769699447752,-40348.07,0.00032608,30]
[403969092,1769699447764,-2348.49,0.00032638,15]
[403969094,1769699447774,-1020.0,0.000327,7]
[403969096,1769699447784,-2348.49,0.00032738,15]
[403969098,1769699447794,-463.95908,0.000328,120]
[403969100,1769699447804,-2000.0,0.00032816,7]
[403969102,1769699447814,-151.0,0.0003283,14]
[403969104,1769699447824,-2348.49,0.00032838,15]
[403969106,1769699447834,-175.53245338,0.00032877,2]
[403969108,1769699447844,-12426.03,0.00032877,10]
[403969110,1769699447853,-200.0,0.00032877,5]
[403969112,1769699447863,-454.8519346,0.00032877,5]
[403969114,1769699447872,-151.0,0.000329,12]
[403969116,1769699447881,-1070.71313743,0.000329,120]
[403969118,1769699447891,-1025.35768828,0.000329,120]
[403969120,1769699447900,-1038.39099904,0.000329,120]
[403969122,1769699447909,-1042.16614625,0.000329,120]
[403969124,1769699447922,-1033.58719126,0.000329,120]
[403969126,1769699447931,-1372.06086925,0.000329,120]
[403969128,1769699447940,-381.0951957,0.000329,120]
[403969130,1769699447950,-1499.8,0.000329,120]
[403969132,1769699447959,-172.33155781,0.000329,120]
[403969134,1769699447968,-176.13181646,0.000329,120]
[403969136,1769699447978,-2295.25383158,0.000329,120]
[403969138,1769699447987,-177.91583122,0.000329,120]
[403969140,1769699447995,-1041.66666667,0.000329,10]
[403969142,1769699448003,-2348.49,0.00032938,60]
[403969144,1769699448014,-2348.49,0.00033038,60]
[403969146,1769699448023,-681.4241,0.000331,10]
[403969148,1769699448032,-217.43292675,0.00033132,2]
[403969150,1769699448042,-2348.49,0.00033138,60]
[403969152,1769699448052,-300.03254722,0.00033151,5]
[403969154,1769699448061,-151.0,0.000332,14]
[403969156,1769699448071,-1000.0,0.00033223,14]
[403969158,1769699448080,-151.0,0.00033223,14]
[403969160,1769699448089,-2348.49,0.00033238,60]
[403969162,1769699448099,-2363.24,0.000333,14]
[403969164,1769699448108,-2348.49,0.00033338,60]
[403969166,1769699448117,-472.88254327,0.00033396,2]
[403969168,1769699448127,-2348.49,0.00033438,60]
[403969170,1769699448136,-472.88254327,0.00033496,2]
[403969172,1769699448145,-2348.49,0.00033538,60]
[403969174,1769699448154,-190.16865,0.00033544,2]
[403969176,1769699448164,-472.88254327,0.00033596,2]
[403969178,1769699448173,-151.0,0.00033616,14]
[403969180,1769699448183,-2348.49,0.00033638,60]
[403969182,1769699448192,-190.16865,0.00033644,2]
[403969184,1769699448201,-173.0,0.00033644,62]
[403969186,1769699448211,-472.88254327,0.00033696,2]
[403969192,1769699448253,-1462.76,0.00033698,30]
[403969194,1769699448266,-2319.29,0.00033698,120]
[403969195,1769699448276,-179.03,0.000337,2]
[403969197,1769699448285,-1020.0,0.000337,7]
[403969199,1769699448296,-2348.62830587,0.00033738,60]
[403969201,1769699448306,-157.49446063,0.00033751,10]
[403969203,1769699448316,-500.0,0.0003376,10]
[403969205,1769699448326,-472.88254327,0.00033796,2]
[403969207,1769699448338,-163.15,0.000338,7]
[403969209,1769699448347,-494.92,0.000338,7]
[403969211,1769699448356,-472.88254327,0.00033896,2]
[403969213,1769699448366,-1070.71313743,0.000339,120]
[403969215,1769699448375,-1025.35768828,0.000339,120]
[403969217,1769699448384,-1038.39099904,0.000339,120]
[403969219,1769699448394,-1042.16614625,0.000339,120]
[403969221,1769699448403,-1033.58719126,0.000339,120]
[403969223,1769699448413,-1372.06086925,0.000339,120]
[403969225,1769699448422,-381.0951957,0.000339,120]
[403969227,1769699448432,-1499.8,0.000339,120]
[403969229,1769699448442,-172.33155781,0.000339,120]
[403969231,1769699448451,-176.13181646,0.000339,120]
[403969233,1769699448460,-2295.25383158,0.000339,120]
[403969234,1769699448469,-500.0,0.0003396,30]
[403969235,1769699448478,-151.0,0.00034009,14]
[403969236,1769699448487,-537375.64,0.0003406,7]
[403969237,1769699448497,-73038.45,0.0003406,7]
[403969238,1769699448506,-185.4706062,0.00034082,30]
[403969239,1769699448519,-604.1333812,0.00034082,30]
[403969240,1769699448528,-185.4706062,0.00034082,30]
[403969241,1769699448537,-604.1333812,0.00034082,30]
[403969242,1769699448546,-604.1333812,0.00034082,30]
[403969243,1769699448555,-185.4706062,0.00034082,30]
[403969244,1769699448565,-604.1333812,0.00034082,30]
[403969245,1769699448574,-604.1333812,0.00034082,30]
[403969246,1769699448583,-1462.76,0.00034246,31]
[403969247,1769699448593,-500.0,0.0003436,10]
[403969248,1769699448602,-630.0,0.00034363,2]
[403969249,1769699448611,-418.0,0.00034363,2]
[403969250,1769699448621,-716.0,0.00034363,2]
[403969251,1769699448631,-179.0,0.00034363,2]
[403969252,1769699448640,-500.0,0.00034399,30]
[403969253,1769699448649,-500.0,0.00034399,30]
[403969254,1769699448659,-500.0,0.00034399,30]
[403969255,1769699448669,-500.0,0.00034399,30]
[403969256,1769699448679,-500.0,0.00034399,30]
[403969257,1769699448687,-500.0,0.00034399,30]
[403969258,1769699448697,-500.0,0.00034399,30]
[403969259,1769699448706,-151.06663125,0.00034399,30]
[403969260,1769699448717,-1104.72,0.000344,30]
[403969261,1769699448726,-151.0,0.00034402,14]
[403969262,1769699448736,-924.8415211,0.00034493,120]
[403969263,1769699448745,-49970.58,0.00034495,12]
[403969265,1769699448755,-151.000023,0.00034495,31]
[403969267,1769699448767,-463.95908,0.000345,120]
[403969269,1769699448777,-205.0,0.000345,38]
[403969271,1769699448787,-152.0,0.00034546,7]
[403969273,1769699448797,-152.0,0.00034546,7]
[403969275,1769699448806,-152.0,0.00034546,7]
[403969277,1769699448815,-151.0,0.00034546,7]
[403969278,1769699448824,-152.0,0.00034546,7]
[403969281,1769699448834,-151.0,0.00034546,7]
[403969283,1769699448844,-152.0,0.00034546,7]
[403969284,1769699448853,-151.0,0.00034546,7]
[403969286,1769699448862,-240.0,0.00034546,7]
[403969288,1769699448872,-151.0,0.00034546,7]
[403969290,1769699448882,-151.0,0.00034546,7]
[403969292,1769699448891,-151.0,0.00034546,7]
[403969294,1769699448901,-151.0,0.00034546,7]
[403969296,1769699448911,-151.0,0.00034546,7]
[403969298,1769699448920,-292.0,0.00034546,7]
[403969300,1769699448929,-500.0,0.0003456,10]
[403969302,1769699448939,-1005.68,0.00034571,60]
[403969304,1769699448949,-256.23,0.00034614,120]
[403969306,1769699448959,-1005.68,0.00034671,60]
[403969308,1769699448968,-888.0,0.00034671,120]
[403969310,1769699448978,-999.0,0.00034671,120]
[403969312,1769699448988,-222.0,0.00034671,120]
[403969314,1769699448997,-452.96,0.00034671,120]
[403969316,1769699449006,-293.838,0.00034682,120]
[403969318,1769699449017,-496.0,0.00034682,120]